[Event "Late-Titled-Tuesday-Blitz-January-23-2024"]
[Site "Chess.com"]
[Date "2024.01.23"]
[Round "11"]
[White "mbchess97"]
[Black "el008"]
[Result "0-1"]
[WhiteElo "2340"]
[BlackElo "2478"]
[TimeControl "180+1"]
[EndTime "16:02:45 PST"]
[Termination "el008 won on time"]

1. c4 {[%clk 0:03:00.9]} 1... b6 {[%clk 0:03:00.9]} 2. d4 {[%clk 0:02:55.7]}
2... Bb7 {[%clk 0:03:01.8]} 3. Nc3 {[%clk 0:02:55.6]} 3... e6 {[%clk 0:03:01.5]}
4. a3 {[%clk 0:02:55.7]} 4... Nf6 {[%clk 0:02:57.4]} 5. Bg5 {[%clk 0:02:51.4]}
5... Be7 {[%clk 0:02:57]} 6. e3 {[%clk 0:02:48.5]} 6... d6 {[%clk 0:02:55.5]} 7.
Nf3 {[%clk 0:02:44.8]} 7... Ne4 {[%clk 0:02:53.9]} 8. Nxe4 {[%clk 0:02:28.1]}
8... Bxe4 {[%clk 0:02:54.5]} 9. Bf4 {[%clk 0:02:22.8]} 9... Nd7 {[%clk
0:02:54.2]} 10. Bd3 {[%clk 0:02:19.7]} 10... Nf6 {[%clk 0:02:44.3]} 11. Qc2
{[%clk 0:02:17.9]} 11... Bxd3 {[%clk 0:02:41]} 12. Qxd3 {[%clk 0:02:18.3]} 12...
d5 {[%clk 0:02:41.7]} 13. Rc1 {[%clk 0:02:12.7]} 13... c5 {[%clk 0:02:34.8]} 14.
cxd5 {[%clk 0:02:07.5]} 14... Nxd5 {[%clk 0:02:25.6]} 15. Qb5+ {[%clk
0:02:03.5]} 15... Qd7 {[%clk 0:02:23.5]} 16. Qxd7+ {[%clk 0:02:02.9]} 16... Kxd7
{[%clk 0:02:24.4]} 17. Ne5+ {[%clk 0:02:03.1]} 17... Ke8 {[%clk 0:02:25]} 18.
Bg3 {[%clk 0:01:56.3]} 18... cxd4 {[%clk 0:02:23.7]} 19. exd4 {[%clk 0:01:56.2]}
19... f6 {[%clk 0:02:18.4]} 20. Nc6 {[%clk 0:01:52.1]} 20... Kd7 {[%clk
0:02:18.7]} 21. Nxe7 {[%clk 0:01:48.1]} 21... Kxe7 {[%clk 0:02:19.6]} 22. O-O
{[%clk 0:01:47.1]} 22... Rhc8 {[%clk 0:02:18.7]} 23. f3 {[%clk 0:01:30.3]} 23...
Kd7 {[%clk 0:02:18.8]} 24. Kf2 {[%clk 0:01:29.6]} 24... Rc6 {[%clk 0:02:13.7]}
25. Rxc6 {[%clk 0:01:27.4]} 25... Kxc6 {[%clk 0:02:14.6]} 26. Rc1+ {[%clk
0:01:27.5]} 26... Kd7 {[%clk 0:02:12.2]} 27. Ke2 {[%clk 0:01:27.7]} 27... Rc8
{[%clk 0:02:07.8]} 28. Rxc8 {[%clk 0:01:26.8]} 28... Kxc8 {[%clk 0:02:08.7]} 29.
Kd3 {[%clk 0:01:27]} 29... Kb7 {[%clk 0:02:09.2]} 30. Bd6 {[%clk 0:01:24.8]}
30... Kc6 {[%clk 0:02:09.4]} 31. Bb8 {[%clk 0:01:23.3]} 31... a6 {[%clk
0:02:07.5]} 32. g3 {[%clk 0:01:20]} 32... Ne7 {[%clk 0:02:06.9]} 33. Ke4 {[%clk
0:01:12.8]} 33... Kb5 {[%clk 0:02:02]} 34. b3 {[%clk 0:01:10.6]} 34... Kc6
{[%clk 0:02:01.5]} 35. h3 {[%clk 0:01:05.9]} 35... Nf5 {[%clk 0:02:01.3]} 36. g4
{[%clk 0:01:03.6]} 36... Ne7 {[%clk 0:02:01.6]} 37. h4 {[%clk 0:01:02.4]} 37...
Kd7 {[%clk 0:01:59.5]} 38. h5 {[%clk 0:00:52.5]} 38... Nd5 {[%clk 0:01:52.9]}
39. Kd3 {[%clk 0:00:43.2]} 39... Kc8 {[%clk 0:01:49.9]} 40. Bg3 {[%clk
0:00:36.2]} 40... g6 {[%clk 0:01:48.8]} 41. hxg6 {[%clk 0:00:33.8]} 41... hxg6
{[%clk 0:01:49.7]} 42. Bh2 {[%clk 0:00:25.7]} 42... f5 {[%clk 0:01:49.8]} 43.
Bg3 {[%clk 0:00:21.6]} 43... b5 {[%clk 0:01:49.7]} 44. a4 {[%clk 0:00:18.6]}
44... Kd7 {[%clk 0:01:49.9]} 45. axb5 {[%clk 0:00:18.4]} 45... axb5 {[%clk
0:01:50.8]} 46. Bh2 {[%clk 0:00:17.6]} 46... Ke8 {[%clk 0:01:51.4]} 47. Be5
{[%clk 0:00:16.9]} 47... Kf7 {[%clk 0:01:51.9]} 48. Bd6 {[%clk 0:00:15]} 48...
Kf6 {[%clk 0:01:51.2]} 49. Be5+ {[%clk 0:00:14.4]} 49... Kg5 {[%clk 0:01:51.7]}
50. gxf5 {[%clk 0:00:14.5]} 50... gxf5 {[%clk 0:01:52.6]} 51. Bd6 {[%clk
0:00:13.1]} 51... Kh4 {[%clk 0:01:52.6]} 52. Ke2 {[%clk 0:00:10.6]} 52... Kh3
{[%clk 0:01:53.1]} 53. Be5 {[%clk 0:00:10.2]} 53... Kg2 {[%clk 0:01:53.1]} 54.
Bd6 {[%clk 0:00:07.2]} 54... Kg1 {[%clk 0:01:44.6]} 55. Be5 {[%clk 0:00:06.9]}
55... Kh1 {[%clk 0:01:44.7]} 56. Bd6 {[%clk 0:00:07]} 56... Kg2 {[%clk
0:01:45.3]} 57. Be5 {[%clk 0:00:07.2]} 57... Ne7 {[%clk 0:01:45.9]} 58. Bd6
{[%clk 0:00:06.2]} 58... Nc6 {[%clk 0:01:46.1]} 59. Bc5 {[%clk 0:00:05.1]} 59...
f4 {[%clk 0:01:44.6]} 60. Bb6 {[%clk 0:00:03.5]} 60... Ne7 {[%clk 0:01:43.2]}
61. Bc7 {[%clk 0:00:02.7]} 61... Nd5 {[%clk 0:01:43.6]} 62. Be5 {[%clk
0:00:02.8]} 62... Kg3 {[%clk 0:01:43.7]} 63. Bd6 {[%clk 0:00:02.8]} 63... Nc3+
{[%clk 0:01:44.1]} 64. Kd3 {[%clk 0:00:03]} 64... Nb1 {[%clk 0:01:37.8]} 65. Ke2
{[%clk 0:00:03.2]} 65... Nc3+ {[%clk 0:01:29.1]} 66. Kd3 {[%clk 0:00:03.2]}
66... Nd1 {[%clk 0:01:29.7]} 67. Ke2 {[%clk 0:00:03.4]} 67... Nf2 {[%clk
0:01:25.3]} 68. Be5 {[%clk 0:00:02.7]} 68... Nh3 {[%clk 0:01:25.7]} 69. Bd6
{[%clk 0:00:02.2]} 69... Ng1+ {[%clk 0:01:26]} 70. Kd3 {[%clk 0:00:01.5]} 70...
Kxf3 {[%clk 0:01:26.4]} 0-1

[Event "Late-Titled-Tuesday-Blitz-January-23-2024"]
[Site "Chess.com"]
[Date "2024.01.23"]
[Round "11"]
[White "Maect19"]
[Black "Noki102"]
[Result "0-1"]
[WhiteElo "2315"]
[BlackElo "2441"]
[TimeControl "180+1"]
[EndTime "16:02:46 PST"]
[Termination "Noki102 won by resignation"]

1. c4 {[%clk 0:03:00.9]} 1... e5 {[%clk 0:02:57.5]} 2. Nc3 {[%clk 0:02:59.2]}
2... Nc6 {[%clk 0:02:57]} 3. g3 {[%clk 0:02:58.6]} 3... Bb4 {[%clk 0:02:57.4]}
4. Bg2 {[%clk 0:02:58.6]} 4... Nge7 {[%clk 0:02:56.3]} 5. e3 {[%clk 0:02:58.5]}
5... d6 {[%clk 0:02:55.4]} 6. Nge2 {[%clk 0:02:57.2]} 6... Bf5 {[%clk
0:02:54.2]} 7. a3 {[%clk 0:02:50.8]} 7... Bxc3 {[%clk 0:02:51.4]} 8. bxc3 {[%clk
0:02:45.8]} 8... Bd3 {[%clk 0:02:49.8]} 9. O-O {[%clk 0:02:42.4]} 9... O-O
{[%clk 0:02:48]} 10. Re1 {[%clk 0:02:38]} 10... f5 {[%clk 0:02:45.6]} 11. a4
{[%clk 0:02:24.5]} 11... b6 {[%clk 0:02:19.4]} 12. Ba3 {[%clk 0:01:54.5]} 12...
Kh8 {[%clk 0:02:04.9]} 13. Nc1 {[%clk 0:01:50.4]} 13... Bxc4 {[%clk 0:02:02.4]}
14. d4 {[%clk 0:01:50.5]} 14... e4 {[%clk 0:01:58.4]} 15. Ne2 {[%clk 0:01:46.7]}
15... Nd5 {[%clk 0:01:56.2]} 16. Qd2 {[%clk 0:01:37.1]} 16... Na5 {[%clk
0:01:54.8]} 17. Rab1 {[%clk 0:01:26.9]} 17... Bd3 {[%clk 0:01:52.7]} 18. Rb5
{[%clk 0:01:22.1]} 18... Bxb5 {[%clk 0:01:51.1]} 19. axb5 {[%clk 0:01:19.7]}
19... Nc4 {[%clk 0:01:50.8]} 20. Qa2 {[%clk 0:01:19.8]} 20... Nxa3 {[%clk
0:01:44.2]} 21. Qxd5 {[%clk 0:01:18.9]} 21... Qe8 {[%clk 0:01:40.2]} 22. c4
{[%clk 0:01:17.5]} 22... Qf7 {[%clk 0:01:39.9]} 23. Nf4 {[%clk 0:00:50.7]} 23...
Qxd5 {[%clk 0:01:31.1]} 24. Nxd5 {[%clk 0:00:51.2]} 24... Rf7 {[%clk 0:01:21]}
25. Rc1 {[%clk 0:00:48.4]} 25... a6 {[%clk 0:01:18.6]} 26. bxa6 {[%clk
0:00:37.2]} 26... Rxa6 {[%clk 0:01:17.4]} 27. c5 {[%clk 0:00:37.6]} 27... bxc5
{[%clk 0:01:11.9]} 28. dxc5 {[%clk 0:00:38]} 28... dxc5 {[%clk 0:00:59.1]} 29.
Rxc5 {[%clk 0:00:36.8]} 29... c6 {[%clk 0:00:43.6]} 30. Nb4 {[%clk 0:00:24.7]}
30... Rb6 {[%clk 0:00:43.1]} 31. Nxc6 {[%clk 0:00:20.4]} 31... Rc7 {[%clk
0:00:40.3]} 32. Rxf5 {[%clk 0:00:18.8]} 32... g6 {[%clk 0:00:31.2]} 33. Ra5
{[%clk 0:00:18.5]} 33... Rcxc6 {[%clk 0:00:27.6]} 34. Rxa3 {[%clk 0:00:15]}
34... Rc1+ {[%clk 0:00:28]} 35. Bf1 {[%clk 0:00:15.1]} 35... Rbb1 {[%clk
0:00:28.1]} 36. Kg2 {[%clk 0:00:15.6]} 36... Rxf1 {[%clk 0:00:28]} 37. Ra8+
{[%clk 0:00:15.7]} 37... Kg7 {[%clk 0:00:27.5]} 38. Ra4 {[%clk 0:00:16.5]} 38...
Rg1+ {[%clk 0:00:26.3]} 39. Kh3 {[%clk 0:00:16.9]} 39... Rbf1 {[%clk 0:00:25.9]}
40. Rxe4 {[%clk 0:00:16.3]} 40... Rxf2 {[%clk 0:00:26.2]} 41. Re7+ {[%clk
0:00:13.7]} 41... Kh6 {[%clk 0:00:26.3]} 42. Kg4 {[%clk 0:00:13.6]} 42... Rxh2
{[%clk 0:00:25.5]} 43. e4 {[%clk 0:00:14.1]} 43... Rhg2 {[%clk 0:00:25.5]} 44.
Kf4 {[%clk 0:00:13.7]} 44... Rxg3 {[%clk 0:00:25.5]} 45. Ke5 {[%clk 0:00:14.5]}
45... Rg5+ {[%clk 0:00:25.2]} 46. Kd6 {[%clk 0:00:14.4]} 46... Rd1+ {[%clk
0:00:25.3]} 47. Kc6 {[%clk 0:00:13.2]} 47... Rg2 {[%clk 0:00:24.2]} 48. Kc5
{[%clk 0:00:10.5]} 48... Rc2+ {[%clk 0:00:24.5]} 49. Kb4 {[%clk 0:00:10.8]}
49... Rb1+ {[%clk 0:00:25.1]} 50. Ka3 {[%clk 0:00:11]} 50... Rc8 {[%clk
0:00:24.1]} 0-1

[Event "Late-Titled-Tuesday-Blitz-January-23-2024"]
[Site "Chess.com"]
[Date "2024.01.23"]
[Round "11"]
[White "Defenstrator"]
[Black "Korchmar_Vasiliy"]
[Result "0-1"]
[WhiteElo "2502"]
[BlackElo "2711"]
[TimeControl "180+1"]
[EndTime "16:02:48 PST"]
[Termination "Korchmar_Vasiliy won by resignation"]

1. Nc3 {[%clk 0:03:00.4]} 1... Nc6 {[%clk 0:02:54.8]} 2. Nf3 {[%clk 0:02:58.2]}
2... Nf6 {[%clk 0:02:54.3]} 3. d4 {[%clk 0:02:53.5]} 3... e5 {[%clk 0:02:48.8]}
4. Nxe5 {[%clk 0:02:48.5]} 4... Nxe5 {[%clk 0:02:48.1]} 5. dxe5 {[%clk
0:02:49.1]} 5... Ng4 {[%clk 0:02:48.8]} 6. Bf4 {[%clk 0:02:39.3]} 6... g5 {[%clk
0:02:49.1]} 7. Bg3 {[%clk 0:02:34.2]} 7... Bg7 {[%clk 0:02:49.5]} 8. Qd5 {[%clk
0:02:30.9]} 8... Qe7 {[%clk 0:02:42]} 9. Nb5 {[%clk 0:02:26.2]} 9... c6 {[%clk
0:02:13.3]} 10. Nd6+ {[%clk 0:02:23.9]} 10... Kf8 {[%clk 0:02:08.1]} 11. Qe4
{[%clk 0:02:13.3]} 11... Nxe5 {[%clk 0:02:05.1]} 12. Nf5 {[%clk 0:02:07.9]}
12... d5 {[%clk 0:01:59.4]} 13. Nxe7 {[%clk 0:02:06.7]} 13... dxe4 {[%clk
0:01:59.2]} 14. Nxc8 {[%clk 0:02:05.5]} 14... Rxc8 {[%clk 0:02:00]} 15. O-O-O
{[%clk 0:02:00.9]} 15... e3 {[%clk 0:01:56.5]} 16. h4 {[%clk 0:01:54.2]} 16...
g4 {[%clk 0:01:54.2]} 17. Bf4 {[%clk 0:01:43.3]} 17... exf2 {[%clk 0:01:46.1]}
18. e3 {[%clk 0:01:32.2]} 18... Bf6 {[%clk 0:01:37]} 19. Be2 {[%clk 0:01:20.2]}
19... Rg8 {[%clk 0:01:35.6]} 20. Rd6 {[%clk 0:01:12.8]} 20... Ke7 {[%clk
0:01:33.9]} 21. Rd4 {[%clk 0:00:56.2]} 21... Rce8 {[%clk 0:00:54.4]} 22. Re4
{[%clk 0:00:36.8]} 22... Kf8 {[%clk 0:00:46.4]} 23. Bh6+ {[%clk 0:00:33.3]}
23... Bg7 {[%clk 0:00:46.5]} 24. Bf4 {[%clk 0:00:26.9]} 24... f5 {[%clk
0:00:45.1]} 25. Rb4 {[%clk 0:00:26]} 25... b5 {[%clk 0:00:28]} 26. h5 {[%clk
0:00:19.4]} 26... Bf6 {[%clk 0:00:26.8]} 27. Rd4 {[%clk 0:00:17.7]} 27... Kf7
{[%clk 0:00:13.1]} 28. Rd6 {[%clk 0:00:13.4]} 28... Rd8 {[%clk 0:00:10.4]} 29.
Bxe5 {[%clk 0:00:13.2]} 29... Bxe5 {[%clk 0:00:10.4]} 30. Rxc6 {[%clk
0:00:13.6]} 30... f4 {[%clk 0:00:06.9]} 31. e4 {[%clk 0:00:07.2]} 31... f3
{[%clk 0:00:05.6]} 32. gxf3 {[%clk 0:00:07.1]} 32... g3 {[%clk 0:00:06.2]} 33.
Bf1 {[%clk 0:00:03.7]} 33... Bf4+ {[%clk 0:00:05.5]} 0-1

[Event "Late-Titled-Tuesday-Blitz-January-23-2024"]
[Site "Chess.com"]
[Date "2024.01.23"]
[Round "11"]
[White "mightysmasher"]
[Black "djano"]
[Result "0-1"]
[WhiteElo "2572"]
[BlackElo "2709"]
[TimeControl "180+1"]
[EndTime "16:02:54 PST"]
[Termination "djano won by checkmate"]

1. e4 {[%clk 0:02:58.9]} 1... c5 {[%clk 0:02:59.2]} 2. c3 {[%clk 0:02:58.8]}
2... d5 {[%clk 0:02:55.5]} 3. exd5 {[%clk 0:02:58.7]} 3... Nf6 {[%clk
0:02:55.6]} 4. Bb5+ {[%clk 0:02:56.9]} 4... Nbd7 {[%clk 0:02:53.9]} 5. Nf3
{[%clk 0:02:55.8]} 5... Nxd5 {[%clk 0:02:50.7]} 6. O-O {[%clk 0:02:56]} 6... e6
{[%clk 0:02:50.5]} 7. d4 {[%clk 0:02:55.9]} 7... cxd4 {[%clk 0:02:50.3]} 8. Nxd4
{[%clk 0:02:55.4]} 8... Be7 {[%clk 0:02:45.9]} 9. Bd2 {[%clk 0:02:52.1]} 9...
O-O {[%clk 0:02:45.6]} 10. Bd3 {[%clk 0:02:51.3]} 10... Bf6 {[%clk 0:02:40.4]}
11. Nf3 {[%clk 0:02:47.4]} 11... Nc5 {[%clk 0:02:38.3]} 12. Bc2 {[%clk
0:02:46.7]} 12... b6 {[%clk 0:02:38.6]} 13. Na3 {[%clk 0:02:46.3]} 13... Ba6
{[%clk 0:02:38.6]} 14. Re1 {[%clk 0:02:43.7]} 14... Nd3 {[%clk 0:02:38.5]} 15.
Bxd3 {[%clk 0:02:43.6]} 15... Bxd3 {[%clk 0:02:39]} 16. Ne5 {[%clk 0:02:29.1]}
16... Bf5 {[%clk 0:02:36.7]} 17. Nac4 {[%clk 0:02:21.3]} 17... Qc7 {[%clk
0:02:34.5]} 18. Qe2 {[%clk 0:02:04.4]} 18... b5 {[%clk 0:02:29]} 19. Na3 {[%clk
0:02:03.8]} 19... a6 {[%clk 0:02:24.9]} 20. h3 {[%clk 0:01:54.6]} 20... h6
{[%clk 0:02:18.2]} 21. Ng4 {[%clk 0:01:52.4]} 21... Be7 {[%clk 0:02:09.2]} 22.
Rad1 {[%clk 0:01:43.3]} 22... Bxa3 {[%clk 0:02:07.1]} 23. bxa3 {[%clk
0:01:20.9]} 23... Nxc3 {[%clk 0:02:04.7]} 24. Bxc3 {[%clk 0:01:20.5]} 24... Qxc3
{[%clk 0:02:05.6]} 25. Ne3 {[%clk 0:01:20.8]} 25... Bh7 {[%clk 0:01:59.1]} 26.
a4 {[%clk 0:01:17.4]} 26... bxa4 {[%clk 0:01:57]} 27. Qg4 {[%clk 0:01:15.9]}
27... a3 {[%clk 0:01:50]} 28. Qg3 {[%clk 0:01:05]} 28... Rad8 {[%clk 0:01:44.1]}
29. Qh4 {[%clk 0:01:02.5]} 29... Rxd1 {[%clk 0:01:38.4]} 30. Rxd1 {[%clk
0:01:01.8]} 30... Qb2 {[%clk 0:01:38.4]} 31. Rd8 {[%clk 0:00:47.9]} 31... Qc1+
{[%clk 0:01:34.4]} 32. Rd1 {[%clk 0:00:46.2]} 32... Qc7 {[%clk 0:01:30.2]} 33.
Qb4 {[%clk 0:00:43.2]} 33... Rd8 {[%clk 0:01:22.2]} 34. Rxd8+ {[%clk 0:00:35.1]}
34... Qxd8 {[%clk 0:01:23.1]} 35. Qxa3 {[%clk 0:00:35.1]} 35... Qb6 {[%clk
0:01:16.7]} 36. Qe7 {[%clk 0:00:30.3]} 36... Bg6 {[%clk 0:01:17]} 37. a3 {[%clk
0:00:28.5]} 37... a5 {[%clk 0:01:15.8]} 38. Ng4 {[%clk 0:00:25.9]} 38... Qb1+
{[%clk 0:01:11]} 39. Kh2 {[%clk 0:00:24.5]} 39... Qf5 {[%clk 0:01:10.8]} 40. Kg1
{[%clk 0:00:20.5]} 40... Kh7 {[%clk 0:01:07.3]} 41. Ne3 {[%clk 0:00:20.4]} 41...
Qe5 {[%clk 0:01:02.8]} 42. Ng4 {[%clk 0:00:18.9]} 42... Qe1+ {[%clk 0:00:59.9]}
43. Kh2 {[%clk 0:00:19]} 43... h5 {[%clk 0:00:59.5]} 44. Qh4 {[%clk 0:00:16.2]}
44... Qe4 {[%clk 0:00:54.2]} 45. g3 {[%clk 0:00:06]} 45... Qf5 {[%clk
0:00:49.8]} 46. Kg1 {[%clk 0:00:04.6]} 46... Qb1+ {[%clk 0:00:47.2]} 47. Kh2
{[%clk 0:00:04.7]} 47... Qb2 {[%clk 0:00:42.4]} 48. Kg1 {[%clk 0:00:04.3]} 48...
Qxa3 {[%clk 0:00:41.2]} 49. Ne5 {[%clk 0:00:04.4]} 49... Qa1+ {[%clk 0:00:41.1]}
50. Kh2 {[%clk 0:00:01.3]} 50... Qxe5 {[%clk 0:00:41.5]} 51. f4 {[%clk
0:00:02.2]} 51... Qe2+ {[%clk 0:00:41.4]} 52. Kg1 {[%clk 0:00:03.1]} 52... Qe1+
{[%clk 0:00:38.6]} 53. Kg2 {[%clk 0:00:01.6]} 53... Be4+ {[%clk 0:00:37.7]} 54.
Kh2 {[%clk 0:00:02.5]} 54... Qh1# {[%clk 0:00:37.7]} 0-1

[Event "Late-Titled-Tuesday-Blitz-January-23-2024"]
[Site "Chess.com"]
[Date "2024.01.23"]
[Round "11"]
[White "DeArron_Fox"]
[Black "MokshanovAlexey"]
[Result "0-1"]
[WhiteElo "2465"]
[BlackElo "2650"]
[TimeControl "180+1"]
[EndTime "16:03:04 PST"]
[Termination "MokshanovAlexey won by checkmate"]

1. d4 {[%clk 0:03:00.9]} 1... d5 {[%clk 0:02:51.4]} 2. c4 {[%clk 0:03:00.6]}
2... e6 {[%clk 0:02:51.5]} 3. Nc3 {[%clk 0:03:01]} 3... Nf6 {[%clk 0:02:51.7]}
4. cxd5 {[%clk 0:03:01.4]} 4... exd5 {[%clk 0:02:51.9]} 5. Bg5 {[%clk 0:03:02]}
5... Be7 {[%clk 0:02:52]} 6. e3 {[%clk 0:03:02.7]} 6... O-O {[%clk 0:02:52.9]}
7. Bd3 {[%clk 0:03:03.4]} 7... c6 {[%clk 0:02:53.5]} 8. Qc2 {[%clk 0:03:03.9]}
8... Nbd7 {[%clk 0:02:54.1]} 9. Nf3 {[%clk 0:03:03.8]} 9... Re8 {[%clk
0:02:54.5]} 10. O-O {[%clk 0:03:04.4]} 10... Nf8 {[%clk 0:02:55.4]} 11. Ne5
{[%clk 0:02:56.2]} 11... N6d7 {[%clk 0:02:54.9]} 12. Bxe7 {[%clk 0:02:42.5]}
12... Qxe7 {[%clk 0:02:55.8]} 13. Nxd7 {[%clk 0:02:35.5]} 13... Bxd7 {[%clk
0:02:56.7]} 14. Rae1 {[%clk 0:02:34.9]} 14... Qg5 {[%clk 0:02:47.4]} 15. f3
{[%clk 0:01:47.5]} 15... Rac8 {[%clk 0:02:09.4]} 16. Qf2 {[%clk 0:01:46]} 16...
Qf6 {[%clk 0:01:59.4]} 17. e4 {[%clk 0:01:42.2]} 17... dxe4 {[%clk 0:01:59.2]}
18. fxe4 {[%clk 0:01:43.1]} 18... Qxf2+ {[%clk 0:01:58.8]} 19. Kxf2 {[%clk
0:01:42.2]} 19... c5 {[%clk 0:01:54.3]} 20. d5 {[%clk 0:01:40.8]} 20... Ng6
{[%clk 0:01:52.1]} 21. Bb1 {[%clk 0:01:35.1]} 21... b5 {[%clk 0:01:49.4]} 22.
Rd1 {[%clk 0:01:28.7]} 22... b4 {[%clk 0:01:42.9]} 23. Ne2 {[%clk 0:01:28.5]}
23... Bb5 {[%clk 0:01:38.4]} 24. Rfe1 {[%clk 0:01:26.8]} 24... Bxe2 {[%clk
0:01:37.5]} 25. Rxe2 {[%clk 0:01:27.7]} 25... Ne5 {[%clk 0:01:33.7]} 26. Bc2
{[%clk 0:01:15.8]} 26... Red8 {[%clk 0:01:32]} 27. b3 {[%clk 0:00:57.6]} 27...
Kf8 {[%clk 0:01:25.2]} 28. Bd3 {[%clk 0:00:57.7]} 28... Ke7 {[%clk 0:01:23.2]}
29. Bb5 {[%clk 0:00:52.4]} 29... Kd6 {[%clk 0:01:20.3]} 30. h3 {[%clk
0:00:42.6]} 30... Rb8 {[%clk 0:01:20.3]} 31. Ba4 {[%clk 0:00:39.1]} 31... Rb6
{[%clk 0:01:10.4]} 32. Ke3 {[%clk 0:00:36.4]} 32... Ra6 {[%clk 0:01:07.6]} 33.
Rc2 {[%clk 0:00:32.9]} 33... Rb8 {[%clk 0:00:57.3]} 34. Rdc1 {[%clk 0:00:05.9]}
34... Ra5 {[%clk 0:00:56.5]} 35. Rd1 {[%clk 0:00:01.7]} 35... f6 {[%clk
0:00:56.6]} 36. g4 {[%clk 0:00:01.7]} 36... c4 {[%clk 0:00:55]} 37. Kf4 {[%clk
0:00:02.3]} 37... c3 {[%clk 0:00:54.7]} 38. h4 {[%clk 0:00:02.1]} 38... Rf8
{[%clk 0:00:50.7]} 39. g5 {[%clk 0:00:01.8]} 39... fxg5+ {[%clk 0:00:49.3]} 40.
Kxg5 {[%clk 0:00:02.7]} 40... Rc5 {[%clk 0:00:25.2]} 41. h5 {[%clk 0:00:03.1]}
41... Rc7 {[%clk 0:00:23.5]} 42. Kh4 {[%clk 0:00:03.2]} 42... Rf4+ {[%clk
0:00:22.9]} 43. Kg3 {[%clk 0:00:02.9]} 43... Rcf7 {[%clk 0:00:22.4]} 44. Kh3
{[%clk 0:00:01.8]} 44... Rg4 {[%clk 0:00:20.2]} 45. Re1 {[%clk 0:00:01.2]} 45...
Rf3+ {[%clk 0:00:20.2]} 46. Kh2 {[%clk 0:00:01.3]} 46... Rg5 {[%clk 0:00:18.9]}
47. Ree2 {[%clk 0:00:01.2]} 47... Rf4 {[%clk 0:00:18.8]} 48. Rg2 {[%clk
0:00:01.2]} 48... Nf3+ {[%clk 0:00:18]} 49. Kh3 {[%clk 0:00:01.1]} 49... Rh4#
{[%clk 0:00:18.1]} 0-1

[Event "Late-Titled-Tuesday-Blitz-January-23-2024"]
[Site "Chess.com"]
[Date "2024.01.23"]
[Round "11"]
[White "OPQRC"]
[Black "DonJuan_34"]
[Result "0-1"]
[WhiteElo "2523"]
[BlackElo "2414"]
[TimeControl "180+1"]
[EndTime "16:03:05 PST"]
[Termination "DonJuan_34 won by resignation"]

1. e4 {[%clk 0:02:53.9]} 1... e6 {[%clk 0:03:00.1]} 2. Qe2 {[%clk 0:02:52.3]}
2... e5 {[%clk 0:02:56.4]} 3. Nc3 {[%clk 0:02:50]} 3... Nc6 {[%clk 0:02:56.7]}
4. Nf3 {[%clk 0:02:49.3]} 4... d6 {[%clk 0:02:56.2]} 5. g3 {[%clk 0:02:48]} 5...
Bg4 {[%clk 0:02:55.4]} 6. Bg2 {[%clk 0:02:48]} 6... Nd4 {[%clk 0:02:51]} 7. Qd3
{[%clk 0:02:48.3]} 7... Bxf3 {[%clk 0:02:47.5]} 8. Bxf3 {[%clk 0:02:49.2]} 8...
Nxf3+ {[%clk 0:02:47.6]} 9. Qxf3 {[%clk 0:02:50.1]} 9... Nf6 {[%clk 0:02:42.3]}
10. O-O {[%clk 0:02:50.3]} 10... Be7 {[%clk 0:02:42.2]} 11. d3 {[%clk
0:02:50.9]} 11... O-O {[%clk 0:02:42.1]} 12. Bg5 {[%clk 0:02:51.5]} 12... Nd7
{[%clk 0:02:36.4]} 13. Bxe7 {[%clk 0:02:51.1]} 13... Qxe7 {[%clk 0:02:36.3]} 14.
Nd5 {[%clk 0:02:51.4]} 14... Qd8 {[%clk 0:02:36.3]} 15. c3 {[%clk 0:02:44]}
15... Nf6 {[%clk 0:02:34.4]} 16. Nxf6+ {[%clk 0:02:39.1]} 16... Qxf6 {[%clk
0:02:34]} 17. Qxf6 {[%clk 0:02:39.6]} 17... gxf6 {[%clk 0:02:34.7]} 18. Kg2
{[%clk 0:02:39.2]} 18... c6 {[%clk 0:02:33.2]} 19. Kf3 {[%clk 0:02:38.7]} 19...
d5 {[%clk 0:02:33.2]} 20. Rad1 {[%clk 0:02:37.6]} 20... Rad8 {[%clk 0:02:32.1]}
21. Kg4 {[%clk 0:02:37.5]} 21... Rd6 {[%clk 0:02:22.1]} 22. exd5 {[%clk
0:02:33.4]} 22... Rxd5 {[%clk 0:02:17.4]} 23. Kf5 {[%clk 0:02:26.8]} 23... Kg7
{[%clk 0:02:16.4]} 24. Ke4 {[%clk 0:02:11.2]} 24... Re8 {[%clk 0:02:11.2]} 25.
Rfe1 {[%clk 0:02:05.2]} 25... Kg6 {[%clk 0:02:04.1]} 26. g4 {[%clk 0:02:05]}
26... Kg5 {[%clk 0:02:00]} 27. h4+ {[%clk 0:01:47.9]} 27... Kg6 {[%clk 0:01:46]}
28. Re3 {[%clk 0:01:40.7]} 28... Red8 {[%clk 0:01:45.6]} 29. Rg1 {[%clk
0:01:37.2]} 29... a5 {[%clk 0:01:36.4]} 30. Rf3 {[%clk 0:01:33.6]} 30... h6
{[%clk 0:01:30.2]} 31. Rgg3 {[%clk 0:01:19.7]} 31... a4 {[%clk 0:01:29.8]} 32.
Rf5 {[%clk 0:01:11.6]} 32... Rb5 {[%clk 0:01:19.3]} 33. g5 {[%clk 0:01:09.8]}
33... hxg5 {[%clk 0:01:15.9]} 34. hxg5 {[%clk 0:01:10.7]} 34... Rb4+ {[%clk
0:01:09.3]} 35. cxb4 {[%clk 0:01:05.4]} 35... Rd4+ {[%clk 0:01:09]} 36. Ke3
{[%clk 0:00:59.7]} 36... Kxf5 {[%clk 0:01:09.4]} 37. a3 {[%clk 0:00:45.4]} 37...
fxg5 {[%clk 0:01:08.9]} 38. Rf3+ {[%clk 0:00:44.8]} 38... Ke6 {[%clk 0:01:06.2]}
39. Rh3 {[%clk 0:00:45.7]} 39... Rh4 {[%clk 0:01:03.3]} 40. Rg3 {[%clk 0:00:43]}
40... g4 {[%clk 0:01:01.8]} 41. Rg1 {[%clk 0:00:42.9]} 41... f5 {[%clk
0:01:00.4]} 42. Rc1 {[%clk 0:00:42.6]} 42... Rh3+ {[%clk 0:00:55.8]} 43. Ke2
{[%clk 0:00:41.7]} 43... f4 {[%clk 0:00:53.8]} 44. b5 {[%clk 0:00:34.1]} 44...
cxb5 {[%clk 0:00:50.9]} 45. Rc5 {[%clk 0:00:33.7]} 45... Rh2 {[%clk 0:00:48.3]}
46. Ke1 {[%clk 0:00:19.9]} 46... Rh1+ {[%clk 0:00:38.4]} 47. Ke2 {[%clk
0:00:18.3]} 47... b4 {[%clk 0:00:31.1]} 48. axb4 {[%clk 0:00:14.7]} 48... Rb1
{[%clk 0:00:29.7]} 49. Rb5 {[%clk 0:00:15.1]} 49... Rxb2+ {[%clk 0:00:29.2]} 50.
Kf1 {[%clk 0:00:15.1]} 50... a3 {[%clk 0:00:29.4]} 51. Rxb7 {[%clk 0:00:15]}
51... a2 {[%clk 0:00:29.3]} 52. Ra7 {[%clk 0:00:15.9]} 52... f3 {[%clk
0:00:27.5]} 53. Kg1 {[%clk 0:00:16.2]} 53... Kd5 {[%clk 0:00:26.5]} 54. b5
{[%clk 0:00:13.4]} 54... Kc5 {[%clk 0:00:25.3]} 55. Ra8 {[%clk 0:00:12.1]} 55...
Kxb5 {[%clk 0:00:24.6]} 0-1